[Event "Liberia Championship 2023"]
[Site "Monrovia"]
[Date "2024.01.17"]
[Round "4.6"]
[White "Anthony Waylea, Jr."]
[Black "Kennedy Zinnah Kengo"]
[Result "1/2-1/2"]
[ECO "C54"]
[WhiteElo "1939"]
[BlackElo "1789"]
[Annotator "NA RC"]
[PlyCount "115"]
[EventDate "2024.01.16"]
[EventType "swiss"]
[EventCountry "LBR"]
[SourceTitle "playchess.com"]
[Source "ChessBase"]
[SourceQuality "1"]
[TimeControl "40/5400+30:1800+30"]

1. e4 {[%emt 1:08:16]} e5 {[%emt 0:00:26]} 2. Nf3 {[%emt 0:00:06]} Nc6 {[%emt 1:31:04]} 3. d4 {[%emt 0:00:07]} exd4 {[%emt 0:00:30]} 4. Bc4 {[%emt 0:24:01]} Bc5 {[%emt 0:00:30]} 5. c3 {[%emt 0:00:00]} Nge7 {[%emt 0:00:00]} 6. cxd4 {[%emt 0:00:00]} Bb4+ {[%emt 0:01:00]} 7. Nc3 {[%emt 0:01:30]} d5 {[%emt 0:00:00]} 8. exd5 {[%emt 0:00:00]} Nxd5 {[%emt 0:00:00]} 9. Bxd5 {[%emt 0:00:00]} Qxd5 {[%emt 0:00:00]} 10. O-O {[%emt 0:00:00]} Bxc3 {[%emt 0:02:00]} 11. bxc3 {[%emt 0:00:00]} O-O {[%emt 0:00:30]} 12. h3 {[%emt 0:00:00]} Na5 {[%emt 0:00:00]} 13. Re1 {[%emt 0:00:00]} f6 {[%emt 0:00:00]} 14. Ba3 {[%emt 0:00:00]} Rd8 {[%emt 0:00:00]} 15. Re7 {[%emt 0:00:00]} Nc4 {[%emt 0:02:00]} 16. Qe2 {[%emt 0:00:00]} Bd7 {[%emt 0:00:00]} 17. Bc1 {[%emt 0:00:00]} Re8 {[%emt 0:01:00]} 18. Bf4 {[%emt 0:00:00]} Rxe7 {[%emt 0:00:00]} 19. Qxe7 {[%emt 0:06:00]} Re8 {[%emt 0:00:00]} 20. Qb4 {[%emt 0:00:00]} a5 21. Qb3 {[%emt 0:00:00]} a4 {[%emt 0:00:00]} 22. Qd1 Rc8 {[%emt 0:02:30]} 23. Rb1 {[%emt 0:00:00]} b5 {[%emt 0:00:00]} 24. Nd2 Bc6 {[%emt 0:01:00]} 25. f3 {[%emt 0:00:00]} g5 {[%emt 0:00:30]} 26. Nxc4 {[%emt 0:03:30]} Qxc4 {[%emt 0:00:00]} 27. Bg3 {[%emt 0:00:00]} Qxa2 {[%emt 0:00:00]} 28. Qd3 {[%emt 0:00:00]} Qd5 {[%emt 0:00:00]} 29. Re1 {[%emt 0:00:00]} Be8 {[%emt 0:00:00]} 30. Re7 {[%emt 0:00:00]} Bg6 {[%emt 0:00:00]} 31. Qe3 {[%emt 0:00:00]} a3 {[%emt 0:00:00]} 32. c4 {[%emt 0:00:00]} bxc4 {[%emt 0:00:00]} 33. Qxa3 {[%emt 0:00:00]} Qxd4+ {[%emt 0:00:00]} 34. Bf2 {[%emt 0:00:00]} Qd1+ {[%emt 0:00:00]} 35. Re1 {[%emt 0:00:00]} Qd6 {[%emt 0:00:00]} 36. Bc5 {[%emt 0:00:00]} Qd2 {[%emt 0:00:00]} 37. Bb4 {[%emt 0:00:00]} Qd4+ {[%emt 0:00:00]} 38. Kh1 {[%emt 0:00:00]} c5 {[%emt 0:00:00]} 39. Bc3 {[%emt 0:00:00]} Qf4 {[%emt 0:00:00]} 40. Qa6 {[%emt 0:00:00]} Rf8 {[%emt 0:00:00]} 41. Qb5 {[%emt 0:04:05]} Qd6 {[%emt 0:00:00]} 42. Qxc4+ {[%emt 0:04:33]} Bf7 {[%emt 0:00:00]} 43. Qa4 {[%emt 0:01:24]} c4 {[%emt 0:00:00]} 44. Bb4 {[%emt 0:03:59]} Qg3 {[%emt 0:00:00]} 45. Qa1 {[%emt 0:00:58]} Rb8 {[%emt 0:00:00]} 46. Bc3 {[%emt 0:00:43]} Rb6 {[%emt 0:00:00]} 47. Rd1 {[%emt 0:04:17]} Kg7 {[%emt 0:00:00]} 48. Qa5 {[%emt 0:01:28]} Re6 {[%emt 0:00:00]} 49. Qf5 {[%emt 0:03:13]} Qf4 {[%emt 0:00:00]} 50. Qxf4 {[%emt 0:02:53]} gxf4 {[%emt 0:00:00]} 51. Rd4 {[%emt 0:00:34]} Re3 {[%emt 0:00:00]} 52. Bd2 {[%emt 0:01:12]} Re2 {[%emt 0:00:00]} 53. Kg1 {[%emt 0:01:27]} Bg6 {[%emt 0:00:00]} 54. Bc3 {[%emt 0:00:58]} Rc2 {[%emt 0:00:00]} 55. Rxc4 {[%emt 0:01:26]} Bd3 {[%emt 0:00:00]} 56. Rc6 {[%emt 0:01:23]} Kg8 {[%emt 0:00:00]} 57. Rc7 {[%emt 0:00:50]} f5 {[%emt 0:00:00]} 58. Ba5 {[%emt 0:00:48]} 1/2-1/2

[Event "Liberia Championship 2023"]
[Site "Monrovia"]
[Date "2024.01.17"]
[Round "4.7"]
[White "Jacob, Jallah"]
[Black "John Jallah"]
[Result "0-1"]
[ECO "A07"]
[WhiteElo "1781"]
[BlackElo "1761"]
[Annotator "NA RC"]
[PlyCount "84"]
[EventDate "2024.01.16"]
[EventType "swiss"]
[EventCountry "LBR"]
[SourceTitle "playchess.com"]
[Source "ChessBase"]
[SourceQuality "1"]
[TimeControl "40/5400+30:1800+30"]

1. Nf3 {[%emt 0:01:34]} d5 {[%emt 0:21:14]} 2. g3 {[%emt 0:00:04]} Nf6 {[%emt 0:00:29]} 3. b3 {[%emt 0:00:16]} Nbd7 {[%emt 0:00:31]} 4. d4 {[%emt 0:00:31]} e6 {[%emt 0:00:20]} 5. Bg2 {[%emt 0:00:24]} b6 {[%emt 0:01:48]} 6. O-O {[%emt 0:00:13]} Bb7 {[%emt 0:00:06]} 7. Bb2 {[%emt 0:00:42]} Bd6 {[%emt 0:00:28]} 8. Nbd2 {[%emt 0:00:05]} c5 {[%emt 0:00:45]} 9. e3 {[%emt 0:01:32]} O-O {[%emt 0:00:31]} 10. c4 {[%emt 0:01:20]} Ne4 {[%emt 0:01:30]} 11. Nxe4 {[%emt 0:02:21]} dxe4 {[%emt 0:00:21]} 12. Ne1 {[%emt 0:02:09]} cxd4 {[%emt 0:03:25]} 13. exd4 {[%emt 0:00:16]} Qe7 {[%emt 0:02:17]} 14. Nc2 {[%emt 0:00:50]} f5 {[%emt 0:00:30]} 15. Re1 {[%emt 0:02:59]} Rad8 {[%emt 0:03:54]} 16. f4 {[%emt 0:01:15]} Nf6 {[%emt 0:01:17]} 17. Qe2 {[%emt 0:01:52]} h5 {[%emt 0:01:13]} 18. Bc3 {[%emt 0:00:52]} h4 {[%emt 0:00:47]} 19. Ne3 {[%emt 0:03:35]} Qf7 {[%emt 0:02:52]} 20. d5 {[%emt 0:10:00]} Bc5 {[%emt 0:00:41]} 21. Kh1 {[%emt 0:18:48]} hxg3 {[%emt 0:02:56]} 22. dxe6 {[%emt 0:09:13]} Qxe6 {[%emt 0:00:36]} 23. Bxf6 {[%emt 0:00:57]} Qxf6 {[%emt 0:00:19]} 24. Red1 {[%emt 0:11:25]} Qh4 {[%emt 0:00:34]} 25. h3 {[%emt 0:03:53]} Qxf4 {[%emt 0:08:09]} 26. Nd5 {[%emt 0:01:42]} Bxd5 {[%emt 0:00:58]} 27. Rxd5 {[%emt 0:00:10]} Rxd5 {[%emt 0:00:17]} 28. cxd5 {[%emt 0:00:10]} Qe5 {[%emt 0:00:14]} 29. Rd1 {[%emt 0:00:02]} Re8 {[%emt 0:01:50]} 30. d6 {[%emt 0:02:35]} Bxd6 {[%emt 0:00:46]} 31. Qc4+ {[%emt 0:00:39]} Kf8 {[%emt 0:01:29]} 32. Rd5 {[%emt 0:00:50]} Qf6 {[%emt 0:03:32]} 33. Qf1 {[%emt 0:01:16]} g6 {[%emt 0:00:29]} 34. Qd1 {[%emt 0:02:32]} Bc5 {[%emt 0:00:26]} 35. Qe1 {[%emt 0:00:48]} Bf2 {[%emt 0:00:55]} 36. Qb4+ {[%emt 0:00:41]} Re7 {[%emt 0:01:51]} 37. Rd8+ {[%emt 0:00:39]} Kf7 {[%emt 0:01:34]} 38. Qc4+ {[%emt 0:00:31]} Qe6 {[%emt 0:00:18]} 39. Qc3 {[%emt 0:02:06]} Rd7 {[%emt 0:02:26]} 40. Bf1 {[%emt 0:00:00]} Rxd8 {[%emt 0:00:00]} 41. Kg2 {[%emt 0:08:48]} f4 {[%emt 0:02:45]} 42. Be2 {[%emt 0:00:45]} f3+ {[%emt 0:01:15]} 0-1

[Event "Liberia Championship 2023"]
[Site "Monrovia"]
[Date "2024.01.17"]
[Round "4.8"]
[White "Alfred J. Kollie"]
[Black "Harold Evans"]
[Result "0-1"]
[ECO "D00"]
[WhiteElo "1612"]
[BlackElo "1735"]
[Annotator "NA RC"]
[PlyCount "101"]
[EventDate "2024.01.16"]
[EventType "swiss"]
[EventCountry "LBR"]
[SourceTitle "playchess.com"]
[Source "ChessBase"]
[SourceQuality "1"]
[TimeControl "40/5400+30:1800+30"]

1. d4 {[%emt 0:52:10]} d5 {[%emt 0:00:16]} 2. c3 {[%emt 0:00:11]} Nc6 {[%emt 0:00:15]} 3. Bg5 {[%emt 0:00:16]} Bf5 {[%emt 0:00:39]} 4. f3 {[%emt 0:00:10]} Qd7 {[%emt 0:00:55]} 5. Nd2 {[%emt 0:00:06]} f6 {[%emt 0:00:47]} 6. Bf4 {[%emt 0:00:07]} e5 {[%emt 0:00:32]} 7. dxe5 {[%emt 0:00:17]} fxe5 {[%emt 0:00:21]} 8. Bg5 {[%emt 0:00:02]} Nf6 {[%emt 0:00:27]} 9. e3 {[%emt 0:00:13]} O-O-O {[%emt 0:00:40]} 10. Bb5 {[%emt 0:00:02]} Qe6 {[%emt 0:00:29]} 11. Qa4 {[%emt 0:00:08]} Bc5 {[%emt 0:02:05]} 12. Bxc6 {[%emt 0:00:18]} bxc6 {[%emt 0:01:47]} 13. Qa6+ {[%emt 0:00:11]} Kd7 {[%emt 0:00:20]} 14. Ne2 {[%emt 0:00:03]} h6 {[%emt 0:00:24]} 15. Bxf6 {[%emt 0:00:03]} gxf6 {[%emt 0:00:56]} 16. e4 {[%emt 0:00:03]} dxe4 {[%emt 0:00:57]} 17. fxe4 {[%emt 0:00:03]} Bh7 {[%emt 0:01:27]} 18. O-O-O {[%emt 0:00:02]} Ke7 {[%emt 0:00:55]} 19. Ng3 {[%emt 0:00:07]} h5 {[%emt 1:25:48]} 20. Rhf1 {[%emt 0:00:47]} Be3 {[%emt 0:00:00]} 21. Nf5+ {[%emt 0:00:15]} Bxf5 {[%emt 0:00:00]} 22. Rxf5 {[%emt 0:00:03]} Rhg8 {[%emt 0:00:00]} 23. Qe2 {[%emt 0:01:39]} Bxd2+ {[%emt 0:00:00]} 24. Rxd2 {[%emt 0:00:06]} Qxa2 {[%emt 0:00:00]} 25. Rxd8 {[%emt 0:01:38]} Rxd8 {[%emt 0:00:00]} 26. Rxh5 {[%emt 0:00:40]} Rb8 {[%emt 0:00:00]} 27. Rh7+ {[%emt 0:00:28]} Ke6 {[%emt 0:00:00]} 28. Qg4+ {[%emt 0:00:20]} Kd6 {[%emt 0:00:00]} 29. Qd7+ {[%emt 0:44:32]} Kc5 {[%emt 0:05:00]} 30. b4+ {[%emt 0:00:00]} Kb5 {[%emt 0:00:00]} 31. Qxc7 {[%emt 0:00:00]} Qa1+ {[%emt 0:00:00]} 32. Kd2 {[%emt 0:00:00]} Qb2+ {[%emt 0:00:00]} 33. Kd3 {[%emt 0:00:00]} Qb1+ {[%emt 0:00:00]} 34. Ke3 {[%emt 0:00:00]} Qe1+ {[%emt 0:02:30]} 35. Kd3 {[%emt 0:00:00]} Qd1+ {[%emt 0:00:30]} 36. Ke3 {[%emt 0:03:30]} Qc1+ {[%emt 0:00:00]} 37. Kd3 {[%emt 0:00:30]} Qd1+ {[%emt 0:01:00]} 38. Ke3 {[%emt 0:00:00]} Qe1+ {[%emt 0:00:00]} 39. Kf3 {[%emt 0:00:00]} Qxc3+ {[%emt 0:00:00]} 40. Kg4 {[%emt 0:00:00]} Rb6 {[%emt 0:00:00]} 41. Qxa7 {[%emt 0:32:00]} Qxb4 {[%emt 0:32:00]} 42. Kf5 {[%emt 0:00:00]} Qd2 {[%emt 0:00:00]} 43. Rh3 {[%emt 0:00:00]} Qg5+ {[%emt 0:00:00]} 44. Ke6 {[%emt 0:00:00]} c5+ {[%emt 0:00:00]} 45. Kf7 {[%emt 0:00:00]} Kc6 {[%emt 0:00:00]} 46. Qa4+ {[%emt 0:00:00]} Kc7 {[%emt 0:00:00]} 47. Rh7 {[%emt 0:00:00]} Kd6 {[%emt 0:00:00]} 48. Qa8 {[%emt 0:00:00]} f5 {[%emt 0:00:00]} 49. Qd5+ {[%emt 0:00:00]} Kc7 {[%emt 0:00:00]} 50. Kf8+ {[%emt 0:00:00]} Kb8 {[%emt 0:00:00]} 51. Qxe5+ {[%emt 0:05:00]} 0-1

[Event "Liberia Championship 2023"]
[Site "Monrovia"]
[Date "2024.01.17"]
[Round "4.9"]
[White "Miller Moore"]
[Black "Prince Jegbadai"]
[Result "1-0"]
[ECO "C01"]
[WhiteElo "1677"]
[BlackElo "1627"]
[Annotator "NA RC"]
[PlyCount "157"]
[EventDate "2024.01.16"]
[EventType "swiss"]
[EventCountry "LBR"]
[SourceTitle "playchess.com"]
[Source "ChessBase"]
[SourceQuality "1"]
[TimeControl "40/5400+30:1800+30"]

1. d4 {[%emt 0:00:13]} e6 {[%emt 0:00:15]} 2. e4 {[%emt 0:00:13]} d5 {[%emt 0:00:13]} 3. f3 {[%emt 0:00:23]} c5 {[%emt 0:00:29]} 4. c3 {[%emt 0:00:31]} c4 {[%emt 0:00:20]} 5. a4 {[%emt 0:01:25]} Ne7 {[%emt 0:00:30]} 6. Bf4 {[%emt 0:00:34]} Ng6 {[%emt 0:00:19]} 7. Bg3 {[%emt 0:00:26]} Nc6 {[%emt 0:00:22]} 8. Qc2 {[%emt 0:01:43]} Na5 {[%emt 0:00:25]} 9. Nd2 {[%emt 0:00:53]} Qb6 {[%emt 0:00:33]} 10. Ne2 {[%emt 0:01:23]} Be7 {[%emt 0:00:19]} 11. h4 {[%emt 0:00:39]} Bd7 {[%emt 0:00:25]} 12. h5 {[%emt 1:28:07]} Nf8 {[%emt 1:32:20]} 13. Nf4 {[%emt 0:00:00]} Bc6 {[%emt 0:00:00]} 14. exd5 {[%emt 0:00:00]} exd5 {[%emt 0:00:00]} 15. Be2 {[%emt 0:00:00]} Ne6 {[%emt 0:00:00]} 16. Nxe6 {[%emt 0:00:00]} fxe6 {[%emt 0:00:00]} 17. h6 {[%emt 0:00:00]} g6 {[%emt 0:00:00]} 18. Be5 {[%emt 0:00:00]} Rf8 {[%emt 0:00:00]} 19. f4 {[%emt 0:00:00]} Kd7 {[%emt 0:00:00]} 20. Bg4 {[%emt 0:00:00]} Qd8 {[%emt 0:00:00]} 21. Qd1 {[%emt 0:00:00]} Bh4+ {[%emt 0:00:00]} 22. Ke2 {[%emt 0:00:00]} Bf6 {[%emt 0:00:00]} 23. Nf3 {[%emt 0:00:00]} Nb3 {[%emt 0:00:00]} 24. Ra2 {[%emt 0:00:00]} a5 {[%emt 0:00:00]} 25. Qe1 {[%emt 0:00:00]} b5 {[%emt 0:00:00]} 26. axb5 {[%emt 0:00:00]} Bxb5 {[%emt 0:00:00]} 27. Kf2 {[%emt 0:00:00]} Qe7 {[%emt 0:00:00]} 28. g3 {[%emt 0:00:00]} a4 {[%emt 0:00:00]} 29. Bxf6 {[%emt 0:00:00]} Qxf6 {[%emt 0:00:00]} 30. Kg2 {[%emt 0:00:00]} Rae8 {[%emt 0:00:00]} 31. Ng5 {[%emt 0:00:00]} Rh8 {[%emt 0:00:00]} 32. Qe3 {[%emt 0:00:00]} Kd6 {[%emt 0:00:00]} 33. Re1 {[%emt 0:00:00]} Bd7 {[%emt 0:00:00]} 34. Qe5+ {[%emt 0:00:00]} Qxe5 {[%emt 0:00:00]} 35. Rxe5 {[%emt 0:00:00]} Re7 {[%emt 0:00:00]} 36. Bd1 {[%emt 0:00:00]} Nc1 {[%emt 0:00:00]} 37. Ra1 {[%emt 0:00:00]} Nd3 {[%emt 0:00:00]} 38. Re2 {[%emt 0:00:00]} Ra8 {[%emt 0:00:00]} 39. Nf3 {[%emt 0:00:00]} Ree8 {[%emt 0:00:00]} 40. Ne5 {[%emt 0:00:00]} Nxe5 {[%emt 0:00:00]} 41. fxe5+ {[%emt 0:00:00]} Ke7 {[%emt 0:00:00]} 42. Rf2 {[%emt 0:00:00]} Rf8 {[%emt 0:00:00]} 43. Bc2 {[%emt 0:00:00]} Rxf2+ {[%emt 0:00:00]} 44. Kxf2 {[%emt 0:00:00]} Rb8 {[%emt 0:00:00]} 45. Rb1 {[%emt 0:00:00]} Kf7 {[%emt 0:00:00]} 46. Ke3 {[%emt 0:00:00]} Kg8 {[%emt 0:00:00]} 47. g4 {[%emt 0:00:00]} g5 {[%emt 0:00:00]} 48. Kd2 {[%emt 0:00:00]} Be8 {[%emt 0:00:00]} 49. Kc1 {[%emt 0:48:30]} Bg6 {[%emt 0:48:30]} 50. Bxg6 {[%emt 0:00:00]} hxg6 {[%emt 0:00:30]} 51. Ra1 {[%emt 0:00:00]} Ra8 {[%emt 0:00:00]} 52. Kc2 {[%emt 0:00:00]} Kh7 {[%emt 0:00:00]} 53. Rf1 {[%emt 0:00:00]} Ra6 {[%emt 0:00:00]} 54. Rf7+ {[%emt 0:00:00]} Kxh6 {[%emt 0:02:00]} 55. Rd7 {[%emt 0:03:00]} Ra8 {[%emt 0:00:00]} 56. Rd6 {[%emt 0:00:00]} Re8 {[%emt 0:00:00]} 57. Ra6 {[%emt 0:00:00]} Kg7 {[%emt 0:00:00]} 58. Ra7+ {[%emt 0:00:00]} Kg8 {[%emt 0:00:00]} 59. Rxa4 {[%emt 0:00:00]} Rf8 {[%emt 0:00:00]} 60. Ra6 {[%emt 0:00:00]} Rf2+ {[%emt 0:03:00]} 61. Kb1 {[%emt 0:03:00]} Kf7 {[%emt 0:00:00]} 62. Ra7+ {[%emt 0:00:00]} Kg8 {[%emt 0:00:00]} 63. Re7 {[%emt 0:00:00]} Kf8 {[%emt 0:01:30]} 64. Rxe6 {[%emt 0:01:30]} Kf7 {[%emt 0:00:00]} 65. Rd6 {[%emt 0:00:00]} Rf4 {[%emt 0:00:00]} 66. Rxd5 {[%emt 0:00:00]} Rxg4 {[%emt 0:00:00]} 67. Rc5 {[%emt 0:00:00]} Re4 {[%emt 0:00:00]} 68. Rxc4 {[%emt 0:00:00]} g4 {[%emt 0:00:00]} 69. Rc7+ {[%emt 0:00:00]} Kg8 {[%emt 0:00:00]} 70. Rc6 {[%emt 0:00:00]} Kg7 {[%emt 0:00:00]} 71. Rf6 {[%emt 0:00:00]} Re1+ {[%emt 0:00:00]} 72. Kc2 {[%emt 0:00:00]} Kh6 {[%emt 0:00:00]} 73. Rf2 {[%emt 0:00:00]} Kg5 {[%emt 0:00:00]} 74. Kd2 {[%emt 0:00:00]} Re4 {[%emt 0:00:00]} 75. b4 {[%emt 0:00:00]} g3 {[%emt 0:00:00]} 76. Rg2 {[%emt 0:00:00]} Kf4 {[%emt 0:00:00]} 77. Re2 {[%emt 0:00:00]} Rxe2+ {[%emt 0:00:00]} 78. Kxe2 {[%emt 0:00:00]} Kg4 {[%emt 0:00:00]} 79. Kf1 {[%emt 0:07:30]} 1-0

[Event "Liberia Championship 2023"]
[Site "Monrovia"]
[Date "2024.01.17"]
[Round "4.10"]
[White "Rudolph Edwards"]
[Black "Martin Dunbar"]
[Result "0-1"]
[ECO "C50"]
[WhiteElo "1630"]
[BlackElo "1709"]
[Annotator "NA RC"]
[PlyCount "90"]
[EventDate "2024.01.16"]
[EventType "swiss"]
[EventCountry "LBR"]
[SourceTitle "playchess.com"]
[Source "ChessBase"]
[SourceQuality "1"]
[TimeControl "40/5400+30:1800+30"]

1. e4 {[%emt 0:00:08]} e5 {[%emt 0:13:43]} 2. Bc4 {[%emt 0:00:28]} Bc5 {[%emt 0:00:19]} 3. d3 {[%emt 0:00:23]} h6 {[%emt 0:00:28]} 4. h3 {[%emt 0:00:04]} d6 {[%emt 1:18:00]} 5. a3 {[%emt 1:31:57]} a6 {[%emt 0:00:00]} 6. Nf3 {[%emt 0:00:00]} Nc6 {[%emt 0:00:00]} 7. Nc3 {[%emt 0:00:00]} Nf6 {[%emt 0:00:00]} 8. Bd2 {[%emt 0:00:00]} Bd7 {[%emt 0:00:00]} 9. Ne2 {[%emt 0:00:00]} Qe7 {[%emt 0:00:00]} 10. Bc3 {[%emt 0:00:00]} Ba7 {[%emt 0:00:00]} 11. Ba2 {[%emt 0:00:00]} g5 {[%emt 0:00:00]} 12. Qd2 {[%emt 0:00:00]} g4 {[%emt 0:04:00]} 13. hxg4 {[%emt 0:04:00]} Nxg4 {[%emt 0:00:00]} 14. d4 {[%emt 0:00:00]} O-O-O {[%emt 0:00:00]} 15. Ng3 {[%emt 0:00:00]} Be6 {[%emt 0:00:00]} 16. Bxe6+ {[%emt 0:00:00]} fxe6 {[%emt 0:00:00]} 17. O-O-O {[%emt 0:00:00]} exd4 {[%emt 0:00:00]} 18. Nxd4 {[%emt 0:00:00]} Nxd4 {[%emt 0:00:00]} 19. Bxd4 {[%emt 0:00:00]} Bxd4 {[%emt 0:00:00]} 20. Qxd4 {[%emt 0:00:00]} Kb8 {[%emt 0:04:00]} 21. Kb1 {[%emt 0:04:00]} Qf7 {[%emt 0:00:00]} 22. Rdf1 {[%emt 0:00:00]} e5 {[%emt 0:01:00]} 23. Qd2 {[%emt 0:01:00]} Qg6 {[%emt 0:00:00]} 24. f3 {[%emt 0:00:00]} Nf6 {[%emt 0:00:00]} 25. Nf5 {[%emt 0:00:00]} h5 {[%emt 0:01:30]} 26. Rfg1 {[%emt 0:01:30]} d5 {[%emt 0:00:00]} 27. Qb4 {[%emt 0:00:00]} Ka8 {[%emt 0:00:00]} 28. Ne7 {[%emt 0:00:00]} Qf7 {[%emt 0:00:00]} 29. Nxd5 {[%emt 0:00:00]} Nxd5 {[%emt 0:02:00]} 30. exd5 {[%emt 0:02:00]} Rxd5 {[%emt 0:00:00]} 31. Rd1 {[%emt 0:00:00]} Rxd1+ {[%emt 0:01:00]} 32. Rxd1 {[%emt 0:01:00]} Qg6 {[%emt 0:00:00]} 33. Rd2 {[%emt 0:00:00]} h4 {[%emt 0:00:00]} 34. Re2 {[%emt 0:00:00]} h3 {[%emt 0:00:00]} 35. gxh3 {[%emt 0:00:00]} Qg1+ {[%emt 0:02:00]} 36. Re1 {[%emt 0:02:00]} Qg3 {[%emt 0:00:30]} 37. Qe4 {[%emt 0:00:30]} Rd8 {[%emt 0:00:00]} 38. Qxe5 {[%emt 0:00:00]} Rd1+ {[%emt 0:00:00]} 39. Ka2 {[%emt 0:00:00]} Qxe1 {[%emt 0:00:00]} 40. Qxc7 {[%emt 0:00:00]} Ra1+ {[%emt 0:02:00]} 41. Kb3 {[%emt 0:32:00]} Qe6+ {[%emt 0:00:00]} 42. c4 {[%emt 0:00:00]} Ka7 {[%emt 0:00:00]} 43. f4 {[%emt 0:00:00]} Qb6+ {[%emt 0:00:00]} 44. Qxb6+ {[%emt 0:00:00]} Kxb6 {[%emt 0:00:00]} 45. Kc3 {[%emt 0:00:00]} Rf1 {[%emt 0:00:00]} 0-1

[Event "Liberia Championship 2023"]
[Site "Monrovia"]
[Date "2024.01.19"]
[Round "5.1"]
[White "Daniel Kolliemelen"]
[Black "Arnold Smith"]
[Result "1/2-1/2"]
[ECO "A45"]
[WhiteElo "1809"]
[BlackElo "1844"]
[Annotator "NA RC"]
[PlyCount "92"]
[EventDate "2024.01.16"]
[EventType "swiss"]
[EventCountry "LBR"]
[SourceTitle "playchess.com"]
[Source "ChessBase"]
[SourceQuality "1"]
[TimeControl "40/5400+30:1800+30"]

1. d4 {[%emt 0:00:26]} Nf6 {[%emt 0:00:21]} 2. e3 {[%emt 0:00:33]} e6 {[%emt 0:00:41]} 3. f4 {[%emt 0:00:11]} c5 4. c3 {[%emt 0:00:14]} Be7 {[%emt 0:01:28]} 5. Bd3 {[%emt 0:00:20]} d5 {[%emt 0:00:30]} 6. Nd2 {[%emt 0:00:44]} b6 {[%emt 0:00:22]} 7. Nh3 {[%emt 0:00:30]} O-O {[%emt 0:00:55]} 8. Qf3 {[%emt 0:00:54]} Bb7 {[%emt 0:00:39]} 9. O-O {[%emt 0:01:12]} Ba6 {[%emt 0:00:36]} 10. Bxa6 {[%emt 0:04:10]} Nxa6 {[%emt 0:00:06]} 11. Qe2 {[%emt 0:00:21]} Qc8 {[%emt 0:00:16]} 12. Qd3 {[%emt 0:00:30]} h6 {[%emt 0:00:33]} 13. a3 {[%emt 0:02:25]} c4 {[%emt 0:04:00]} 14. Qc2 {[%emt 0:00:51]} Qb7 {[%emt 0:00:07]} 15. Nf2 {[%emt 0:00:59]} b5 {[%emt 0:00:30]} 16. g3 {[%emt 0:04:12]} Nc7 {[%emt 0:00:28]} 17. Rb1 {[%emt 0:02:30]} a5 {[%emt 0:03:33]} 18. e4 {[%emt 0:03:20]} dxe4 {[%emt 0:01:07]} 19. Ndxe4 {[%emt 0:00:41]} Nxe4 {[%emt 0:02:43]} 20. Qxe4 {[%emt 0:01:27]} Qxe4 {[%emt 0:00:36]} 21. Nxe4 {[%emt 0:01:09]} Nd5 {[%emt 0:00:18]} 22. f5 {[%emt 0:03:59]} Rfb8 {[%emt 0:02:03]} 23. fxe6 {[%emt 0:05:55]} fxe6 {[%emt 0:00:11]} 24. Bd2 {[%emt 0:00:10]} Rf8 {[%emt 0:02:45]} 25. Rfe1 {[%emt 0:00:28]} a4 {[%emt 0:02:42]} 26. Re2 {[%emt 0:05:03]} Ra6 {[%emt 0:00:57]} 27. Rbe1 {[%emt 0:00:57]} Rc6 {[%emt 0:01:15]} 28. Kg2 {[%emt 0:00:36]} Rf7 {[%emt 0:00:34]} 29. h4 {[%emt 0:01:03]} Bf8 {[%emt 0:00:45]} 30. Nf2 {[%emt 0:04:00]} Re7 {[%emt 0:01:39]} 31. Nh3 {[%emt 0:01:48]} Rb6 {[%emt 0:04:53]} 32. g4 {[%emt 0:54:52]} g6 {[%emt 1:08:57]} 33. Nf4 {[%emt 0:00:00]} Nxf4+ {[%emt 0:00:00]} 34. Bxf4 {[%emt 0:01:00]} Bg7 {[%emt 0:01:00]} 35. Kg3 {[%emt 0:00:00]} Kf7 {[%emt 0:00:00]} 36. Kf3 {[%emt 0:00:00]} Rd7 {[%emt 0:00:00]} 37. Be5 {[%emt 0:00:00]} Bxe5 {[%emt 0:00:00]} 38. Rxe5 {[%emt 0:00:00]} Rd5 {[%emt 0:00:00]} 39. Rxd5 {[%emt 0:00:00]} exd5 {[%emt 0:00:00]} 40. Re5 {[%emt 0:00:00]} Rf6+ {[%emt 0:00:00]} 41. Ke3 {[%emt 0:00:00]} Re6 {[%emt 0:00:00]} 42. Kf4 {[%emt 0:00:00]} Rf6+ {[%emt 0:00:00]} 43. Kg3 {[%emt 0:00:00]} Rd6 {[%emt 0:00:00]} 44. g5 {[%emt 0:00:00]} h5 {[%emt 0:00:00]} 45. Kf4 {[%emt 0:00:00]} Rd8 {[%emt 0:00:00]} 46. Re2 {[%emt 0:00:00]} Rd6 {[%emt 0:00:00]} 1/2-1/2